fUSD/lending_fUSD_20250112
["ID","MTS","AMOUNT","RATE_DAILY","PERIOD"]
[348684707,1736715048920,-179.99323059,0.00010547,2]
[348684708,1736715048929,-500.0,0.00010547,2]
[348684709,1736715048939,-500.0,0.00010547,2]
[348684710,1736715048949,-735.7,0.00010547,2]
[348684711,1736715048958,-500.0,0.00010547,2]
[348684712,1736715048968,-500.0,0.00010547,2]
[348684713,1736715048977,-552.04,0.00010547,2]
[348684714,1736715048987,-500.0,0.00010547,2]
[348684715,1736715048996,-500.0,0.00010547,2]
[348684716,1736715049006,-500.0,0.00010547,2]
[348684717,1736715049015,-500.0,0.00010547,2]
[348684718,1736715049024,-500.0,0.00010547,2]
[348684719,1736715049033,-508.82,0.00010547,2]
[348684720,1736715049042,-500.0,0.00010547,2]
[348684721,1736715049051,-716.15,0.00010547,2]
[348684722,1736715049061,-500.0,0.00010547,2]
[348684723,1736715049070,-500.0,0.00010547,2]
[348684724,1736715049079,-536.0,0.00010547,2]
[348684725,1736715049088,-500.0,0.00010547,2]
[348684726,1736715049097,-500.0,0.00010547,2]
[348684727,1736715049106,-500.0,0.00010547,2]
[348684728,1736715049115,-500.0,0.00010547,2]
[348684729,1736715049124,-509.76,0.00010547,2]
[348684730,1736715049134,-500.0,0.00010547,2]
[348684731,1736715049143,-500.0,0.00010547,2]
[348684732,1736715049153,-500.0,0.00010547,2]
[348684733,1736715049162,-500.0,0.00010547,2]
[348684734,1736715049171,-500.0,0.00010547,2]
[348684735,1736715049180,-500.0,0.00010547,2]
[348684736,1736715049189,-500.0,0.00010547,2]
[348684737,1736715049199,-543.46,0.00010547,2]
[348684738,1736715049208,-471.19051603,0.00010547,2]
[348684739,1736715049217,-500.0,0.00010547,2]
[348684740,1736715049227,-500.0,0.00010547,2]
[348684741,1736715049236,-500.0,0.00010547,2]
[348684742,1736715049246,-500.0,0.00010547,2]
[348684743,1736715049255,-725.8,0.00010547,2]
[348684744,1736715049265,-662.83,0.00010547,2]
[348684745,1736715049274,-731.24,0.00010547,2]
[348684746,1736715049283,-500.0,0.00010547,2]
[348684747,1736715049293,-757.63,0.00010547,2]
[348684748,1736715049302,-283.43632501,0.00010547,2]
[348684749,1736715049312,-500.0,0.00010547,2]
[348684750,1736715049321,-500.0,0.00010547,2]
[348684751,1736715049331,-500.0,0.00010547,2]
[348684752,1736715049340,-571.84,0.00010547,2]
[348684753,1736715049350,-500.0,0.00010547,2]
[348684754,1736715049359,-500.0,0.00010547,2]
[348684755,1736715049368,-604.36905914,0.00010547,2]
[348684756,1736715049378,-612.1,0.00010547,2]
[348684757,1736715049388,-500.0,0.00010547,2]
[348684758,1736715049398,-500.0,0.00010547,2]
[348684759,1736715049408,-500.0,0.00010547,2]
[348684760,1736715049417,-624.87,0.00010547,2]
[348684761,1736715049426,-625.0,0.00010547,2]
[348684762,1736715049435,-546.46,0.00010547,2]
[348684763,1736715049444,-429.61750672,0.00010547,2]
[348684764,1736715049457,-70.38249328,0.00010547,2]
[348684765,1736715049467,-663.83,0.00010547,2]
[348684766,1736715049475,-434.78750672,0.00010547,2]
[348684767,1736715049487,-65.21249328,0.00010547,2]
[348684768,1736715049497,-500.0,0.00010547,2]
[348684769,1736715049506,-761.24,0.00010547,2]
[348684770,1736715049514,-500.0,0.00010547,2]
[348684771,1736715049524,-726.85,0.00010547,2]
[348684772,1736715049535,-1059.16,0.00010547,2]
[348684773,1736715049545,-587.34,0.00010547,2]
[348684774,1736715049558,-500.0,0.00010547,2]
[348684775,1736715049568,-1099.08,0.00010547,2]
[348684776,1736715049580,-476.88753783,0.00010548,2]
[348684777,1736715049589,-527.04,0.00010621,2]
[348684778,1736715049599,-783.54,0.00010621,2]
[348684779,1736715049608,-564.52,0.00010621,2]
[348684780,1736715049617,-573.17,0.00010621,2]
[348684781,1736715049626,-500.0,0.00010621,2]
[348684782,1736715049636,-500.0,0.00010621,2]
[348684783,1736715049645,-500.0,0.00010621,2]
[348684784,1736715049655,-554.58,0.00010621,2]
[348684785,1736715049664,-543.31,0.00010621,2]
[348684786,1736715049673,-500.0,0.00010621,2]
[348684787,1736715049683,-627.06,0.00010621,2]
[348684788,1736715049692,-251.68652341,0.00010621,2]
[348684789,1736715049703,-248.31347659,0.00010621,2]
[348684790,1736715049713,-361.58886285,0.00010621,2]
[348684791,1736715049724,-241.86113715,0.00010621,2]
[348684792,1736715049733,-622.72,0.00010621,2]
[348684793,1736715049743,-500.0,0.00010621,2]
[348684794,1736715049752,-500.0,0.00010621,2]
[348684795,1736715049761,-500.0,0.00010621,2]
[348684796,1736715049771,-596.54261066,0.00010621,2]
[348684797,1736715049811,-97.15738934,0.00010621,2]
[348684798,1736715049820,-553.34,0.00010621,2]
[348684799,1736715049829,-620.37,0.00010621,2]
[348684800,1736715049838,-500.0,0.00010621,2]
[348684801,1736715049847,-437.53261106,0.00010621,2]
[348684802,1736715049858,-172.65738894,0.00010621,2]
[348684803,1736715049867,-476.95494826,0.00010621,2]
[348684804,1736715050198,-158.36108296,9.9e-05,2]
[348684805,1736715050208,-500.0,9.997e-05,2]
[348684806,1736715050217,-500.0,0.00010271,2]
[348684807,1736715050226,-107.13505174,0.00010621,2]
[348684808,1736715050235,-500.0,0.00010621,2]
[348684809,1736715050245,-500.0,0.00010621,2]
[348684810,1736715050254,-1503.89,0.00010621,2]
[348684811,1736715050263,-558.51,0.00010621,2]
[348684812,1736715050273,-4582.39,0.00010621,2]
[348684813,1736715050283,-500.0,0.00010621,2]
[348684814,1736715050292,-500.0,0.00010621,2]
[348684815,1736715050301,-559.89,0.00010621,2]
[348684816,1736715050310,-583.02,0.00010621,2]
[348684817,1736715050319,-523.64,0.00010621,2]
[348684818,1736715050328,-764.78,0.00010621,2]
[348684819,1736715050339,-728.66,0.00010621,2]
[348684820,1736715050348,-722.98,0.00010621,2]
[348684821,1736715050358,-694.33,0.00010621,2]
[348684822,1736715050368,-1360.15,0.00010621,2]
[348684823,1736715050378,-3184.78,0.00010621,2]
[348684824,1736715050388,-500.0,0.00010621,2]
[348684825,1736715050398,-1819.79,0.00010621,2]
[348684826,1736715050409,-3391.26,0.00010621,2]
[348684827,1736715050418,-2168.88,0.00010621,2]
[348684828,1736715050427,-674.53,0.00010621,2]
[348684829,1736715050436,-635.75,0.00010621,2]
[348684830,1736715050445,-1726.35,0.00010621,2]
[348684831,1736715050455,-887.47,0.00010621,2]
[348684832,1736715050465,-500.0,0.00010621,2]
[348684833,1736715050475,-632.05,0.00010621,2]
[348684834,1736715050483,-537.43,0.00010621,2]
[348684835,1736715050493,-1240.15,0.00010621,2]
[348684836,1736715050503,-500.0,0.00010621,2]
[348684837,1736715050512,-2477.84,0.00010621,2]
[348684838,1736715050523,-674.74,0.00010621,2]
[348684839,1736715050534,-798.9,0.00010621,2]
[348684840,1736715050546,-1272.16,0.00010621,2]
[348684841,1736715050556,-500.0,0.00010621,2]
[348684842,1736715050566,-2079.21,0.00010621,2]
[348684843,1736715050576,-587.94,0.00010621,2]
[348684844,1736715050586,-1105.49,0.00010621,2]
[348684845,1736715050595,-500.0,0.00010621,2]
[348684846,1736715050605,-671.15,0.00010621,2]
[348684847,1736715050614,-500.0,0.00010621,2]
[348684848,1736715050626,-728.37,0.00010621,2]
[348684849,1736715050637,-500.0,0.00010621,2]
[348684850,1736715050647,-427.8,0.00010621,2]
[348684851,1736715050656,-954.38,0.00010621,2]
[348684852,1736715050666,-651.49,0.00010621,2]
[348684853,1736715050677,-1277.5,0.00010621,2]
[348684854,1736715050686,-500.0,0.00010621,2]
[348684855,1736715050696,-687.57,0.00010621,2]
[348684856,1736715050706,-831.18,0.00010621,2]
[348684857,1736715050715,-698.46,0.00010621,2]
[348684858,1736715050725,-603.72,0.00010621,2]
[348684859,1736715050734,-1808.23,0.00010621,2]
[348684860,1736715050744,-566.25,0.00010621,2]
[348684861,1736715050944,-748.25,0.00010621,2]
[348684862,1736715050957,-500.0,0.00010621,2]
[348684863,1736715050966,-816.75,0.00010621,2]
[348684864,1736715050975,-150.0,0.00010628,2]
[348684865,1736715050985,-1960.12,0.00010628,2]
[348684866,1736715050994,-437.19,0.00010628,2]
[348684867,1736715051003,-150.0,0.00010628,2]
[348684868,1736715051013,-344.74,0.0001063,2]
[348684869,1736715051024,-437.19,0.0001063,2]
[348684870,1736715051034,-437.19,0.0001063,2]
[348684871,1736715051044,-436.98,0.0001063,2]
[348684872,1736715051053,-476.88753783,0.00010655,2]
[348684873,1736715051062,-1174.1,0.000107,2]
[348684874,1736715051071,-22966.1044,0.00010719,2]
[348684875,1736715051080,-1564.5855,0.00010719,2]
[348684876,1736715051089,-1000.0,0.00010721,2]
[348684877,1736715051098,-500.0,0.00010728,2]
[348684878,1736715051107,-695.04,0.00010728,2]
[348684879,1736715051116,-663.19,0.00010728,2]
[348684880,1736715051126,-500.0,0.00010728,2]
[348684881,1736715051136,-562.93,0.00010728,2]
[348684882,1736715051145,-866.33,0.00010728,2]
[348684883,1736715051155,-1613.66,0.00010728,2]
[348684884,1736715051165,-928.32,0.00010728,2]
[348684885,1736715051176,-612.39,0.00010728,2]
[348684886,1736715051185,-2016.102532,0.00010728,2]
[348684887,1736715051194,-2787.75,0.00010728,2]
[348684888,1736715051203,-2671.6,0.00010728,2]
[348684889,1736715051212,-2243.725831,0.00010728,2]
[348684890,1736715051221,-737.22,0.00010728,2]
[348684891,1736715051231,-660.68,0.00010728,2]
[348684892,1736715051240,-647.43,0.00010728,2]
[348684893,1736715051249,-2877.26,0.00010728,2]
[348684894,1736715051259,-868.53,0.00010728,2]
[348684895,1736715051269,-500.0,0.00010728,2]
[348684896,1736715051279,-945.26,0.00010728,2]
[348684897,1736715051288,-941.5,0.00010728,2]
[348684898,1736715051297,-1381.03,0.00010728,2]
[348684899,1736715051306,-956.86,0.00010728,2]
[348684900,1736715051315,-1738.31,0.00010728,2]
[348684901,1736715051324,-795.47,0.00010729,2]
[348684902,1736715051333,-1780.22,0.00010729,2]
[348684903,1736715051342,-450.60389308,0.00010729,2]
[348684904,1736715051354,-455.57610692,0.00010729,2]
[348684905,1736715051364,-497.42389308,0.0001073,2]
[348684906,1736715051374,-2.57610692,0.0001073,2]
[348684907,1736715051383,-1530.7,0.0001073,2]
[348684908,1736715051393,-1241.55,0.0001073,2]
[348684909,1736715051402,-150.0,0.00010735,2]
[348684910,1736715051411,-150.0,0.00010751,2]
[348684911,1736715051420,-150.0,0.00010751,2]
[348684912,1736715051429,-210.55389505,0.00010758,2]
[348684913,1736715051454,-289.44610495,0.00010758,2]
[348684914,1736715051465,-150.0,0.00010762,2]
[348684915,1736715051475,-476.88753783,0.00010762,2]
[348684916,1736715051484,-150.0,0.00010772,2]
[348684917,1736715051494,-150.0,0.00010773,2]
[348684918,1736715051505,-150.0,0.00010777,2]
[348684919,1736715051514,-255.0,0.00010778,2]
[348684920,1736715051523,-150.0,0.00010798,2]
[348684921,1736715051534,-150.0,0.00010799,2]
[348684922,1736715051543,-1000.0,0.000108,2]
[348684923,1736715051552,-150.0,0.00010812,2]
[348684924,1736715051561,-628.21,0.00010816,2]
[348684925,1736715051570,-500.0,0.00010816,2]
[348684926,1736715051579,-500.0,0.00010816,2]
[348684927,1736715051588,-3861.852,0.00010818,2]
[348684928,1736715051597,-156.345,0.00010818,2]
[348684929,1736715051606,-940.9,0.00010818,2]
[348684930,1736715051616,-1374.83,0.00010818,2]
[348684931,1736715051628,-1553.64,0.00010818,2]
[348684932,1736715051639,-1466.7,0.00010818,2]
[348684933,1736715051649,-2147.19,0.00010818,2]
[348684934,1736715051659,-3988.93,0.00010818,2]
[348684935,1736715051669,-646.54,0.00010818,2]
[348684936,1736715051678,-514.83,0.00010819,2]
[348684937,1736715051688,-544.8,0.00010819,2]
[348684938,1736715051697,-500.0,0.00010819,2]
[348684939,1736715051706,-500.0,0.00010819,2]
[348684940,1736715051716,-641.09,0.00010819,2]
[348684941,1736715051725,-500.0,0.00010819,2]
[348684942,1736715051735,-500.0,0.00010819,2]
[348684943,1736715051744,-500.0,0.00010819,2]
[348684944,1736715051753,-659.63,0.00010819,2]
[348684945,1736715051763,-713.28,0.00010819,2]
[348684946,1736715051773,-1071.02,0.00010819,2]
[348684947,1736715051784,-649.1,0.00010819,2]
[348684948,1736715051794,-756.21,0.00010819,2]
[348684949,1736715051803,-906.73,0.00010819,2]
[348684950,1736715051812,-500.0,0.00010819,2]
[348684951,1736715051822,-765.22,0.00010819,2]
[348684952,1736715051831,-541.43,0.00010819,2]
[348684953,1736715051841,-904.42,0.00010819,2]
[348684954,1736715051851,-1696.61,0.00010819,2]
[348684955,1736715051860,-500.0,0.00010819,2]
[348684956,1736715051870,-500.0,0.00010819,2]
[348684957,1736715051879,-839.03,0.00010819,2]
[348684958,1736715051888,-1171.2,0.00010819,2]
[348684959,1736715051898,-1550.19,0.00010819,2]
[348684960,1736715051907,-522.35,0.00010819,2]
[348684961,1736715051917,-1125.7,0.00010819,2]
[348684962,1736715051926,-500.0,0.00010819,2]
[348684963,1736715051936,-762.88,0.00010819,2]
[348684964,1736715051947,-1287.27,0.00010819,2]
[348684965,1736715051957,-664.15,0.00010819,2]
[348684966,1736715051966,-3108.37,0.00010819,2]
[348684967,1736715051975,-749.7,0.00010819,2]
[348684968,1736715051985,-1349.45,0.00010819,2]
[348684969,1736715051994,-1000.0,0.00010819,2]
[348684970,1736715052003,-647.53,0.00010819,2]
[348684971,1736715052013,-1961.82,0.00010819,2]
[348684972,1736715052022,-993.36,0.00010819,2]
[348684973,1736715052031,-500.0,0.0001082,2]
[348684974,1736715052040,-571.61,0.0001082,2]
[348684975,1736715052050,-531.54,0.0001082,2]
[348684976,1736715052059,-1291.45,0.0001082,2]
[348684977,1736715052068,-3163.06,0.0001082,2]
[348684978,1736715052077,-3072.55,0.0001082,2]
[348684979,1736715052087,-1312.57,0.0001082,2]
[348684980,1736715052096,-2350.2,0.0001082,2]
[348684981,1736715052106,-502.31,0.00010821,2]
[348684982,1736715052115,-500.0,0.00010821,2]
[348684983,1736715052125,-500.0,0.00010821,2]
[348684984,1736715052135,-735.7,0.00010821,2]
[348684985,1736715052144,-500.0,0.00010821,2]
[348684986,1736715052154,-500.0,0.00010821,2]
[348684987,1736715052164,-552.04,0.00010821,2]
[348684988,1736715052175,-500.0,0.00010821,2]
[348684989,1736715052185,-500.0,0.00010821,2]
[348684990,1736715052194,-500.0,0.00010821,2]
[348684991,1736715052203,-500.0,0.00010821,2]
[348684992,1736715052214,-500.0,0.00010821,2]
[348684993,1736715052224,-508.82,0.00010821,2]
[348684994,1736715052233,-500.0,0.00010821,2]
[348684995,1736715052243,-716.15,0.00010821,2]
[348684996,1736715052252,-500.0,0.00010821,2]
[348684997,1736715052262,-500.0,0.00010821,2]
[348684998,1736715052271,-536.0,0.00010821,2]
[348684999,1736715052281,-500.0,0.00010821,2]
[348685000,1736715052291,-500.0,0.00010821,2]
[348685001,1736715052301,-500.0,0.00010821,2]
[348685002,1736715052312,-509.76,0.00010821,2]
[348685003,1736715052322,-500.0,0.00010821,2]
[348685004,1736715052331,-465.46020656,0.00010821,2]
[348685005,1736715052341,-500.0,0.00010821,2]
[348685006,1736715052352,-500.0,0.00010821,2]
[348685007,1736715052361,-500.0,0.00010821,2]
[348685008,1736715052371,-500.0,0.00010821,2]
[348685009,1736715052381,-543.46,0.00010821,2]
[348685010,1736715052390,-500.0,0.00010821,2]
[348685011,1736715052399,-500.0,0.00010821,2]
[348685012,1736715052408,-500.0,0.00010821,2]
[348685013,1736715052417,-725.8,0.00010821,2]
[348685014,1736715052427,-662.83,0.00010821,2]
[348685015,1736715052436,-150.0,0.00010821,2]
[348685016,1736715052445,-731.24,0.00010821,2]
[348685017,1736715052456,-757.63,0.00010821,2]
[348685018,1736715052467,-500.0,0.00010821,2]
[348685019,1736715052476,-500.0,0.00010821,2]
[348685020,1736715052485,-500.0,0.00010821,2]
[348685021,1736715052496,-571.84,0.00010821,2]
[348685022,1736715052506,-500.0,0.00010821,2]
[348685023,1736715052515,-500.0,0.00010821,2]
[348685024,1736715052525,-612.1,0.00010821,2]
[348685025,1736715052536,-500.0,0.00010821,2]
[348685026,1736715052546,-500.0,0.00010821,2]
[348685027,1736715052555,-500.0,0.00010821,2]
[348685028,1736715052564,-624.87,0.00010821,2]
[348685029,1736715052573,-625.0,0.00010821,2]
[348685030,1736715052583,-546.46,0.00010821,2]
[348685031,1736715052592,-500.0,0.00010821,2]
[348685032,1736715052601,-663.83,0.00010821,2]
[348685033,1736715052610,-500.0,0.00010821,2]
[348685034,1736715052620,-500.0,0.00010821,2]
[348685035,1736715052629,-761.24,0.00010821,2]
[348685036,1736715052638,-500.0,0.00010821,2]
[348685037,1736715052648,-726.85,0.00010821,2]
[348685038,1736715052657,-1059.16,0.00010821,2]
[348685039,1736715052666,-587.34,0.00010821,2]
[348685040,1736715052676,-500.0,0.00010821,2]
[348685041,1736715052686,-1099.08,0.00010821,2]
[348685042,1736715052695,-150.0,0.0001084,2]
[348685043,1736715052704,-150.0,0.00010841,2]
[348685044,1736715052713,-150.60824624,0.0001085,2]
[348685045,1736715052723,-150.0,0.00010854,2]
[348685046,1736715052732,-150.0,0.00010861,2]
[348685047,1736715052742,-150.0,0.00010863,2]
[348685048,1736715052752,-476.88753783,0.00010869,2]
[348685049,1736715052761,-150.0,0.00010876,2]
[348685050,1736715052770,-1500.0,0.00010888,2]
[348685051,1736715052780,-150.0,0.00010892,2]
[348685052,1736715052789,-150.0,0.00010894,2]
[348685053,1736715052798,-527.04,0.00010895,2]
[348685054,1736715052808,-783.54,0.00010895,2]
[348685055,1736715052817,-564.52,0.00010895,2]
[348685056,1736715052826,-99.33256472,0.00010895,2]
[348685057,1736715052839,-473.83743528,0.00010895,2]
[348685058,1736715052848,-500.0,0.00010895,2]
[348685059,1736715052858,-500.0,0.00010895,2]
[348685060,1736715052868,-500.0,0.00010895,2]
[348685061,1736715052878,-554.58,0.00010895,2]
[348685062,1736715052887,-543.31,0.00010895,2]
[348685063,1736715052896,-593.79638054,0.00010895,2]
[348685064,1736715052905,-627.06,0.00010895,2]
[348685065,1736715052915,-500.0,0.00010895,2]
[348685066,1736715052924,-603.45,0.00010895,2]
[348685067,1736715052933,-622.72,0.00010895,2]
[348685068,1736715052943,-500.0,0.00010895,2]
[348685069,1736715052952,-500.0,0.00010895,2]
[348685070,1736715052961,-500.0,0.00010895,2]
[348685071,1736715052971,-693.7,0.00010895,2]
[348685072,1736715052982,-553.34,0.00010895,2]
[348685073,1736715052991,-620.37,0.00010895,2]
[348685074,1736715053001,-500.0,0.00010895,2]
[348685075,1736715053010,-610.19,0.00010895,2]
[348685076,1736715053020,-584.09,0.00010895,2]
[348685077,1736715053030,-500.0,0.00010895,2]
[348685078,1736715053040,-500.0,0.00010895,2]
[348685079,1736715053050,-1503.89,0.00010895,2]
[348685080,1736715053060,-558.51,0.00010895,2]
[348685081,1736715053070,-4582.39,0.00010895,2]
[348685082,1736715053080,-500.0,0.00010895,2]
[348685083,1736715053090,-500.0,0.00010895,2]
[348685084,1736715053100,-559.89,0.00010895,2]
[348685085,1736715053110,-583.02,0.00010895,2]
[348685086,1736715053120,-523.64,0.00010895,2]
[348685087,1736715053129,-764.78,0.00010895,2]
[348685088,1736715053140,-728.66,0.00010895,2]
[348685089,1736715053150,-722.98,0.00010895,2]
[348685090,1736715053161,-694.33,0.00010895,2]
[348685091,1736715053172,-3184.78,0.00010895,2]
[348685092,1736715053182,-1360.15,0.00010895,2]
[348685093,1736715053191,-500.0,0.00010895,2]
[348685094,1736715053201,-1819.79,0.00010895,2]
[348685095,1736715053211,-3391.26,0.00010895,2]
[348685096,1736715053220,-1335.94930012,0.00010895,2]
[348685097,1736715053245,-832.93069988,0.00010895,2]
[348685098,1736715053254,-674.53,0.00010895,2]
[348685099,1736715053263,-635.75,0.00010895,2]
[348685100,1736715053272,-142.39049109,0.00010895,2]
[348685101,1736715053284,-839.6199934,0.00010895,2]
[348685102,1736715372629,805.17,8.219e-05,2]
[348685103,1736715406615,275.73,0.000123,31]
[348685104,1736715406672,275.73,0.000123,31]
[348685105,1736715406726,275.73,0.000123,31]
[348685106,1736715406783,275.73,0.000123,31]
[348685107,1736715406848,275.73,0.000123,31]
[348685108,1736715406906,275.73,0.000123,31]
[348685109,1736715406970,275.73,0.000123,31]
[348685110,1736715407033,275.73,0.000123,31]
[348685111,1736715407086,275.73,0.000123,31]
[348685112,1736715407158,275.73,0.000123,31]
[348685113,1736715407231,275.73,0.000123,31]
[348685114,1736715407301,275.73,0.000123,31]
[348685115,1736715407387,275.73,0.000123,31]
[348685116,1736715407448,275.73,0.000123,31]
[348685117,1736715407500,275.73,0.000123,31]
[348685118,1736715407561,275.73,0.000123,31]
[348685119,1736715417484,581.10953491,8.494e-05,2]
[348685120,1736715418293,500.0,8.494e-05,2]
[348685121,1736715429207,500.0,8.494e-05,2]
[348685130,1736715791623,500.0,0.00022829,120]
[348685132,1736716018822,231.63,0.000123,31]
[348685133,1736716018888,231.63,0.000123,31]
[348685134,1736716019015,231.63,0.000123,31]
[348685135,1736716019128,231.63,0.000123,31]
[348685136,1736716019172,231.63,0.000123,31]
[348685137,1736716019217,231.63,0.000123,31]
[348685138,1736716019270,231.63,0.000123,31]
[348685139,1736716019312,231.63,0.000123,31]
[348685140,1736716019372,231.63,0.000123,31]
[348685141,1736716019421,231.63,0.000123,31]
[348685142,1736716019489,231.63,0.000123,31]
[348685143,1736716019550,231.63,0.000123,31]
[348685144,1736716019610,231.63,0.000123,31]
[348685145,1736716019672,231.63,0.000123,31]
[348685146,1736716019793,231.63,0.000123,31]
[348685147,1736716019938,231.63,0.000123,31]
[348685148,1736716220005,1152.456219,0.00023,120]
[348685154,1736716231787,-250.0,9.023e-05,2]
[348685155,1736716231797,-1000.0,9.028e-05,2]
[348685156,1736716231806,-716.62,9.081e-05,2]
[348685157,1736716231815,-250.0,9.111e-05,2]
[348685158,1736716231825,-391.58,9.16e-05,2]
[348685159,1736716231834,-804.61,9.388e-05,2]
[348685160,1736716231843,-250.0,9.461e-05,2]
[348685161,1736716231852,-173.40642769,9.461e-05,2]
[348685162,1736716231862,-174.22,9.505e-05,2]
[348685163,1736716231871,-437.93,9.51e-05,2]
[348685164,1736716231880,-437.93,9.51e-05,2]
[348685165,1736716231890,-437.58,9.51e-05,2]
[348685166,1736716231899,-150.0,9.798e-05,2]
[348685167,1736716231908,-500.0,9.799e-05,2]
[348685168,1736716231918,-500.0,9.799e-05,2]
[348685169,1736716231927,-500.0,9.799e-05,2]
[348685170,1736716231936,-500.0,9.799e-05,2]
[348685171,1736716231945,-500.0,9.799e-05,2]
[348685172,1736716231954,-500.0,9.799e-05,2]
[348685173,1736716231963,-500.0,9.799e-05,2]
[348685174,1736716231972,-500.0,9.799e-05,2]
[348685175,1736716231982,-500.0,9.799e-05,2]
[348685176,1736716231990,-500.0,9.799e-05,2]
[348685177,1736716232000,-500.0,9.799e-05,2]
[348685178,1736716232009,-500.0,9.799e-05,2]
[348685179,1736716232018,-500.0,9.799e-05,2]
[348685180,1736716232027,-500.0,9.799e-05,2]
[348685181,1736716232037,-500.0,9.799e-05,2]
[348685182,1736716232046,-500.0,9.799e-05,2]
[348685183,1736716232055,-549.97,9.799e-05,2]
[348685184,1736716232065,-500.0,9.799e-05,2]
[348685185,1736716232075,-500.0,9.799e-05,2]
[348685186,1736716232084,-500.0,9.799e-05,2]
[348685187,1736716232094,-500.0,9.799e-05,2]
[348685188,1736716232103,-129.09249746,9.799e-05,2]
[348685189,1736716232115,-434.18295961,9.799e-05,2]
[348685190,1736716232124,-500.0,9.799e-05,2]
[348685191,1736716232133,-500.0,9.799e-05,2]
[348685192,1736716232142,-510.11,9.799e-05,2]
[348685193,1736716232152,-282.00985379,9.799e-05,2]
[348685194,1736716232161,-500.0,9.799e-05,2]
[348685195,1736716232170,-500.0,9.799e-05,2]
[348685196,1736716232179,-500.0,9.799e-05,2]
[348685197,1736716232189,-500.0,9.799e-05,2]
[348685198,1736716232199,-664.54,9.799e-05,2]
[348685199,1736716232208,-310.98337892,9.799e-05,2]
[348685200,1736716232219,-164.40495557,9.799e-05,2]
[348685201,1736716232229,-500.0,9.799e-05,2]
[348685202,1736716232239,-500.0,9.799e-05,2]
[348685203,1736716232251,-500.0,9.799e-05,2]
[348685204,1736716232260,-656.47,9.799e-05,2]
[348685205,1736716232270,-500.0,9.799e-05,2]
[348685206,1736716232279,-500.0,9.799e-05,2]
[348685207,1736716232288,-500.0,9.799e-05,2]
[348685208,1736716232298,-513.94,9.799e-05,2]
[348685209,1736716232308,-500.0,9.799e-05,2]
[348685210,1736716232319,-500.0,9.799e-05,2]
[348685211,1736716232329,-586.47,9.799e-05,2]
[348685212,1736716232338,-500.0,9.799e-05,2]
[348685213,1736716232347,-500.0,9.799e-05,2]
[348685214,1736716232356,-500.0,9.799e-05,2]
[348685215,1736716232365,-500.0,9.799e-05,2]
[348685216,1736716232375,-549.75,9.799e-05,2]
[348685218,1736716232384,-500.0,9.799e-05,2]
[348685220,1736716232393,-500.0,9.799e-05,2]
[348685222,1736716232402,-500.0,9.799e-05,2]
[348685224,1736716232412,-500.0,9.799e-05,2]